bitfinex-derivatives/quotes_BNBF0:USTF0_20250406
["timestamp","ask_amount","ask_price","bid_price","bid_amount"]
[1743964583306,1.27588957,556.79,555.21,0.30059923]
[1743964583506,1.27588957,556.79,555.22,0.30059923]
[1743964583705,1.27588957,556.79,555.23,0.30059923]
[1743964583906,2.11502126,556.84,555.19,0.30059923]
[1743964584101,1.49852077,556.83,555.2,0.30059923]
[1743964584307,0.61650049,556.84,555.2,0.30059923]
[1743964584506,0.72,556.83,555.21,0.30059923]
[1743964584905,0.33047892,556.82,555.22,0.30059923]
[1743964585103,0.33047892,556.82,555.23,0.30059923]
[1743964585409,2.61177994,556.83,555.24,0.30059923]
[1743964585609,2.11441114,556.82,555.19,0.30059923]
[1743964585908,1.27588957,556.81,555.2,0.30059923]
[1743964586111,3.72083117,556.81,555.19,0.30059923]
[1743964586305,2.4449416,556.8,555.19,0.30059923]
[1743964586503,1.27588957,556.79,555.19,0.30059923]
[1743964586703,3.38747791,556.79,555.19,0.30059923]
[1743964586904,2.11158834,556.78,555.19,0.30059923]
[1743964587109,1.27588957,556.77,555.19,0.30059923]
[1743964587304,3.38747791,556.77,555.19,0.30059923]
[1743964587501,2.11158834,556.76,555.19,0.30059923]
[1743964587705,3.36649014,556.76,555.19,0.30059923]
[1743964587909,0.6155015,556.75,555.19,0.30059923]
[1743964588208,1.89139107,556.75,555.19,0.30059923]
[1743964588409,1.49608684,556.74,555.19,0.30059923]
[1743964588611,3.38747791,556.74,555.19,0.30059923]
[1743964588805,2.11158834,556.73,555.19,0.30059923]
[1743964589006,0.33049222,556.72,555.19,0.30059923]
[1743964589202,1.60638179,556.72,555.19,0.30059923]
[1743964589405,3.71797013,556.72,555.19,0.30059923]
[1743964589602,3.71797013,556.71,555.19,0.30059923]
[1743964589808,2.44208056,556.7,555.19,0.30059923]
[1743964590109,1.60638179,556.69,555.19,0.30059923]
[1743964590304,3.38747791,556.69,555.19,0.30059923]
[1743964590503,2.11158834,556.68,555.19,0.30059923]
[1743964590810,3.38747791,556.68,555.19,0.30059923]
[1743964591110,2.11158834,556.67,555.2,0.36023054]
[1743964591310,0.35929219,556.65,555.21,0.30075477]
[1743964591510,0.33055089,556.64,555.21,0.30075477]
[1743964591712,0.33055089,556.64,555.22,0.36021757]
[1743964591909,0.33055089,556.64,555.23,0.30075477]
[1743964592514,0.33055089,556.64,555.24,0.36020459]
[1743964592711,0.885,556.63,555.24,0.36020459]
[1743964592908,0.33055089,556.62,555.25,0.30075477]
[1743964593714,0.885,556.63,555.24,0.36020459]
[1743964595110,0.33063291,556.62,555.25,0.30083128]
[1743964595913,0.33063291,556.62,555.24,0.36020459]
[1743964596912,0.94276785,556.62,555.24,0.36020459]
[1743964597115,0.33063291,556.61,555.24,0.36020459]
[1743964597610,3.70651101,556.61,555.24,0.36020459]
[1743964597810,2.43062144,556.6,555.24,0.36020459]
[1743964598015,0.33063291,556.59,555.24,0.36020459]
[1743964598217,1.60652248,556.59,555.24,0.36020459]
[1743964598515,0.33063291,556.58,555.24,0.36020459]
[1743964598715,4.77677335,556.58,555.24,0.36020459]
[1743964598916,2.43062144,556.57,553.92,1.31653437]
[1743964599118,1.60652248,556.56,554.05,0.36097825]
[1743964599415,0.33063291,556.55,554.06,0.30101731]
[1743964599612,2.43062144,556.55,554.07,0.30101731]
[1743964599917,1.60652248,556.54,554.08,0.30101731]
[1743964600119,3.3758781,556.54,554.06,0.31327926]
[1743964600313,3.70665952,556.53,554.07,0.30097733]
[1743964600509,2.09998853,556.52,554.07,0.30097733]
[1743964600811,1.60667099,556.51,554.08,0.30097733]
[1743964601018,0.33078142,556.5,554.09,0.30097733]
[1743964601314,3.70665952,556.5,554.1,0.30097733]
[1743964601515,0.33078142,556.49,554.11,0.30097733]
[1743964601716,0.33078142,556.49,554.12,0.30097733]
[1743964601916,0.33076605,556.56,554.12,0.30097733]
[1743964602116,0.33076605,556.56,554.06,0.31327926]
[1743964602117,1.60665562,556.56,554.13,0.30097733]
[1743964602416,0.33076605,556.55,554.14,0.30097733]
[1743964602615,2.41538748,556.55,554.07,0.30097733]
[1743964602814,2.08462143,556.55,554.06,0.31327926]
[1743964603012,1.60666372,556.54,554.07,0.30097039]
[1743964603211,0.33077415,556.53,554.08,0.30097039]
[1743964603416,0.33077415,556.53,554.09,0.30097039]
[1743964603617,0.33077415,556.56,554.1,0.30097039]
[1743964603915,0.33079118,556.55,554.22,0.36086752]
[1743964604112,1.32579118,556.55,554.23,0.30098729]
[1743964604311,0.33079118,556.54,554.24,0.30098729]
[1743964604511,2.41116543,556.54,554.25,0.30098729]
[1743964604718,0.33079118,556.53,554.36,0.36077639]
[1743964605018,0.33079118,556.52,554.37,0.30098729]
[1743964605217,0.33079118,556.52,554.38,0.30098729]
[1743964605412,1.27588957,556.53,554.37,0.30098729]
[1743964605713,0.33074549,556.52,554.37,0.30098729]
[1743964605917,0.33074549,556.54,554.37,0.30098729]
[1743964606115,0.995,556.55,554.47,0.36070481]
[1743964606312,0.33074399,556.54,554.48,0.30098729]
[1743964606515,0.33074399,556.54,554.5,0.3606853]
[1743964606713,0.33074399,556.54,554.51,0.30098729]
[1743964607118,0.33074399,556.54,554.53,0.36066578]
[1743964607313,3.68740309,556.54,554.54,0.30098729]
[1743964607518,3.68740309,556.54,554.53,0.36066578]
[1743964607519,2.41151352,556.53,554.55,0.30098729]
[1743964607722,1.60663356,556.52,554.56,0.30098729]
[1743964608021,0.33074399,556.51,554.57,0.30098729]
[1743964608220,3.68740309,556.51,554.54,0.30098729]
[1743964608419,2.41151352,556.5,554.55,0.30098729]
[1743964608719,1.60663356,556.49,554.56,0.30098729]
[1743964608933,0.33074399,556.48,554.54,0.30098729]
[1743964609119,0.33074399,556.48,554.53,0.36066578]
[1743964609120,2.41151352,556.48,554.55,0.30098729]
[1743964609320,0.33074399,556.47,554.54,0.30098729]
[1743964609522,2.41151352,556.47,554.55,0.30098729]
[1743964609721,2.08076953,556.47,554.54,0.30098729]
[1743964610025,0.33086707,556.46,554.55,0.30098729]
[1743964610322,1.60675664,556.46,554.54,0.30098729]
[1743964610521,0.33086707,556.45,554.55,0.30098729]
[1743964610717,4.00071944,556.45,554.56,0.30098729]
[1743964610918,2.4116366,556.44,554.57,0.30098729]
[1743964611116,0.33086707,556.43,554.54,0.30098729]
[1743964611621,1.60675664,556.43,554.54,0.30098729]
[1743964611817,0.33086707,556.42,554.54,0.30098729]
[1743964612022,2.4116366,556.42,554.54,0.30098729]
[1743964612322,0.33086707,556.41,554.54,0.30098729]
[1743964612624,1.60675664,556.41,554.54,0.30098729]
[1743964612816,0.96786707,556.4,554.54,0.30098729]
[1743964613021,0.33086707,556.39,554.54,0.30098729]
[1743964613221,2.4116366,556.39,554.54,0.30098729]
[1743964613518,1.60675664,556.38,554.54,0.30098729]
[1743964613718,0.33086707,556.37,554.54,0.30098729]
[1743964613923,2.4116366,556.37,554.54,0.30098729]
[1743964614124,0.9393357,556.36,554.54,0.30098729]
[1743964614325,0.33086707,556.35,554.54,0.30098729]
[1743964614521,1.60675664,556.36,554.54,0.30098729]
[1743964614721,0.33086707,556.35,554.54,0.30098729]
[1743964614925,2.41937532,556.35,554.54,0.30098729]
[1743964615123,1.60675664,556.34,554.54,0.30098729]
[1743964615324,4.23939782,556.34,554.53,0.36066578]
[1743964615526,2.41940081,556.33,554.54,0.30108686]
[1743964615826,0.33089256,556.32,554.54,0.30108686]
[1743964616021,1.60678213,556.32,554.54,0.30108686]
[1743964616227,0.33089256,556.31,554.55,0.30108686]
[1743964616527,0.875,556.34,554.53,0.36066578]
[1743964616729,0.875,556.34,554.54,0.30094267]
[1743964616928,0.33074269,556.33,554.55,0.30094267]
[1743964617129,0.33074269,556.33,554.56,0.30094267]
[1743964617322,0.33074269,556.33,554.57,0.30094267]
[1743964617528,0.33074269,556.33,554.58,0.30094267]
[1743964617829,0.33074269,556.33,554.59,0.30094267]
[1743964618131,0.33074269,556.33,554.61,0.36061376]
[1743964618432,0.35950532,556.32,554.62,0.30094267]
[1743964618627,0.35950532,556.32,554.63,0.30094267]
[1743964618827,0.67261968,556.32,554.64,0.30094267]
[1743964619031,0.67261968,556.32,554.65,0.30094267]
[1743964619232,0.67261968,556.32,554.67,0.36057475]
[1743964619430,1.25850532,556.32,554.68,0.30094267]
[1743964619630,1.25850532,556.32,554.69,0.30094267]
[1743964619830,1.25850532,556.32,554.7,0.30080188]
[1743964620032,1.25850532,556.32,554.72,0.36054225]
[1743964620232,1.25850532,556.32,554.73,0.30080188]
[1743964620533,1.25850532,556.32,554.74,0.30080188]
[1743964620934,1.25850532,556.32,554.75,0.30080188]
[1743964621136,1.25850532,556.32,554.76,0.30080188]
[1743964621437,1.25850532,556.32,554.77,0.30080188]
[1743964621735,1.25850532,556.32,554.78,0.30080188]
[1743964621936,1.25850532,556.32,554.79,0.30080188]
[1743964622131,1.25850532,556.32,554.8,0.30080188]
[1743964622535,1.25850532,556.32,554.81,0.30080188]
[1743964622836,1.25850532,556.32,554.72,0.36054225]
[1743964622837,1.25850532,556.32,554.82,0.30080188]
[1743964623039,1.25850532,556.32,554.83,0.30080188]
[1743964623238,0.899,556.32,554.84,0.30080188]
[1743964623537,0.899,556.32,554.85,0.30080188]
[1743964623736,0.899,556.32,554.86,0.30080188]
[1743964623934,0.899,556.32,554.87,0.30080188]
[1743964624134,0.899,556.32,554.88,0.30080188]
[1743964624338,0.899,556.32,554.9,0.3604253]
[1743964624539,0.899,556.32,554.91,0.30080188]
[1743964624840,0.899,556.32,554.92,0.30080188]
[1743964625041,0.899,556.32,554.9,0.3604253]
[1743964625241,0.899,556.32,554.91,0.3007144]
[1743964625437,0.899,556.32,554.92,0.3007144]
[1743964625638,0.899,556.32,554.93,0.66112021]
[1743964625842,0.899,556.32,554.94,0.3007144]
[1743964626046,0.899,556.32,554.95,0.3007144]
[1743964626345,0.899,556.32,554.96,0.3007144]
[1743964626545,1.638,556.32,554.97,0.3007144]
[1743964626845,1.638,556.32,554.98,0.3007144]
[1743964627041,1.638,556.32,554.99,0.3007144]
[1743964627245,1.638,556.32,555.01,0.36035386]
[1743964627446,1.638,556.32,555.02,0.3007144]
[1743964627749,1.638,556.32,555.04,0.36033439]
[1743964628054,1.638,556.32,555.05,0.30064169]
[1743964628255,1.638,556.32,555.06,0.30064169]
[1743964628554,1.638,556.32,555.07,0.30064169]
[1743964628754,1.638,556.32,555.08,0.30064169]
[1743964629054,1.638,556.32,555.1,0.36029544]
[1743964629254,1.638,556.32,555.11,0.30064169]
[1743964629450,1.638,556.32,555.13,0.36027597]
[1743964629656,2.641,556.32,555.14,0.30056062]
[1743964629849,2.641,556.32,555.15,0.30056062]
[1743964630050,2.641,556.32,555.17,0.36025001]
[1743964630250,2.641,556.32,555.18,0.30056062]
[1743964630453,2.641,556.32,555.2,0.36023054]
[1743964630852,3.302,556.32,555.21,0.30056407]
[1743964631052,3.302,556.32,555.22,0.30056407]
[1743964631255,3.302,556.32,555.23,0.30056407]
[1743964631455,3.302,556.32,555.24,0.30056407]
[1743964631757,3.302,556.32,555.25,0.30056407]
[1743964631953,3.302,556.32,555.26,0.30056407]
[1743964632156,3.302,556.32,555.27,0.30056407]
[1743964632551,3.302,556.32,555.28,0.30056407]
[1743964632755,3.302,556.32,555.21,0.30056407]
[1743964632956,3.302,556.32,555.2,0.36023054]
[1743964633153,3.302,556.32,555.21,0.30067627]
[1743964633353,3.302,556.32,555.22,0.30067627]
[1743964633559,3.302,556.32,555.23,0.30067627]
[1743964633859,3.302,556.32,555.24,0.66088086]
[1743964634054,3.302,556.32,555.25,0.66087437]
[1743964634258,3.302,556.32,555.26,0.30067627]
[1743964634559,3.302,556.32,555.27,0.36018513]
[1743964634754,3.302,556.32,555.27,0.66086275]
[1743964634956,3.302,556.32,555.28,0.30067762]
[1743964635153,3.302,556.32,555.29,0.30067762]
[1743964635455,3.302,556.32,555.3,0.30063019]
[1743964635660,3.302,556.32,555.31,0.66078938]
[1743964635859,3.302,556.32,555.32,0.66078289]
[1743964636054,3.302,556.32,555.33,0.6607764]
[1743964636252,3.302,556.32,555.34,0.36013973]
[1743964636456,3.302,556.32,555.35,0.30063019]
[1743964636658,3.302,556.32,555.36,0.30063019]
[1743964636958,3.302,556.32,555.37,0.30063019]
[1743964637258,3.302,556.32,555.39,0.36010731]
[1743964637460,3.302,556.32,555.4,0.30063019]
[1743964637661,3.302,556.32,555.42,0.36008786]
[1743964637860,3.302,556.32,555.43,0.30063019]
[1743964638056,3.302,556.32,555.44,0.36007489]
[1743964638262,3.302,556.32,555.45,0.30063019]
[1743964638462,3.302,556.32,555.46,0.36006193]
[1743964638662,3.302,556.32,555.47,0.30063019]
[1743964638862,3.302,556.32,555.48,0.36004896]
[1743964639064,3.302,556.32,555.49,0.30063019]
[1743964639460,3.302,556.32,555.48,0.36004896]
[1743964639658,3.302,556.32,555.49,0.30056076]
[1743964639858,3.302,556.32,555.5,0.360036]
[1743964640057,3.302,556.32,555.51,0.30056076]
[1743964640263,3.302,556.32,555.52,0.6605838]
[1743964640464,3.302,556.32,555.53,0.30056076]
[1743964640665,3.302,556.32,555.54,0.30056076]
[1743964640868,3.302,556.32,555.55,0.30056076]
[1743964641059,3.302,556.32,555.53,0.30056076]
[1743964641264,3.302,556.32,555.54,0.30056076]
[1743964641460,3.302,556.32,555.55,0.30056076]
[1743964641661,3.302,556.32,555.53,0.30056076]
[1743964641965,3.302,556.32,555.54,0.30056076]
[1743964642166,3.302,556.32,555.53,0.30056076]
[1743964642366,3.302,556.32,555.54,0.30056076]
[1743964642670,3.302,556.32,555.55,0.30056076]
[1743964642966,3.302,556.32,555.56,0.30056076]
[1743964643167,3.302,556.32,555.52,0.36002304]
[1743964643168,3.302,556.32,555.57,0.30056076]
[1743964643364,3.302,556.32,555.58,0.30056076]
[1743964643568,3.302,556.32,555.59,0.30056076]
[1743964643870,3.302,556.32,555.6,0.30056076]
[1743964644068,3.302,556.32,555.61,0.30056076]
[1743964644368,3.302,556.32,555.62,0.30056076]
[1743964644569,3.302,556.32,555.63,0.30056076]
[1743964644763,3.302,556.32,555.64,0.30056076]
[1743964644969,3.302,556.32,555.65,0.30056076]
[1743964645274,3.302,556.32,555.52,0.36002304]
[1743964645470,3.302,556.32,555.66,0.30047637]
[1743964645774,3.302,556.32,555.67,0.30047637]
[1743964645975,3.302,556.32,555.53,0.30047637]
[1743964646277,3.302,556.32,555.54,0.30047637]
[1743964646472,3.302,556.32,555.55,0.30047637]
[1743964646674,3.302,556.32,555.56,0.30047637]
[1743964646975,3.302,556.32,555.57,0.30047637]
[1743964647176,3.302,556.32,555.58,0.30047637]
[1743964647371,3.302,556.32,555.59,0.30047637]
[1743964647576,3.302,556.32,555.52,0.36002304]
[1743964647577,3.302,556.32,555.6,0.30047637]
[1743964647777,3.302,556.32,555.61,0.30047637]
[1743964648076,3.302,556.32,555.62,0.30047637]
[1743964648271,3.302,556.32,555.63,0.30047637]
[1743964648475,3.302,556.32,555.64,0.30047637]
[1743964648675,3.302,556.32,555.65,0.30047637]
[1743964648874,3.302,556.32,555.66,0.30047637]
[1743964649076,3.302,556.32,555.67,0.30047637]
[1743964649276,3.302,556.32,555.53,0.30047637]
[1743964649571,3.302,556.32,555.52,0.36002304]
[1743964649775,3.302,556.32,555.53,0.30055559]
[1743964650380,3.302,556.32,555.54,0.36001008]
[1743964650679,3.302,556.32,555.55,0.30055559]
[1743964651378,3.302,556.32,555.54,0.36001008]
[1743964651577,3.302,556.32,555.55,0.3005968]
[1743964652174,3.302,556.32,555.56,0.3005968]
[1743964652374,3.302,556.32,555.55,0.3005968]
[1743964652674,3.302,556.32,555.55,0.6606004]
[1743964652875,3.994,556.32,555.55,0.6606004]
[1743964653079,3.994,556.32,555.56,0.30058477]
[1743964655481,3.994,556.32,555.57,0.35999064]
[1743964655677,3.994,556.32,555.58,0.30058477]
[1743964655883,3.994,556.32,555.59,0.35997768]
[1743964656079,3.994,556.32,555.6,0.30058477]
[1743964656384,3.994,556.32,555.61,0.66054949]
[1743964656683,3.994,556.32,555.62,0.66054301]
[1743964656883,3.994,556.32,555.63,0.30058477]
[1743964657182,3.994,556.32,555.64,0.30058477]
[1743964657378,3.994,556.32,555.63,0.30058477]
[1743964657580,3.994,556.32,555.64,0.30058477]
[1743964657781,3.994,556.32,555.63,0.30058477]
[1743964658685,3.994,556.32,555.64,0.35994528]
[1743964658879,3.994,556.32,555.65,0.30058477]
[1743964660285,3.994,556.32,555.66,0.30058477]
[1743964660480,3.994,556.32,555.67,0.30058477]
[1743964660785,3.994,556.32,555.67,1.31653437]
[1743964660985,3.994,556.32,555.68,0.30058477]
[1743964661285,3.994,556.32,555.67,1.31653437]
[1743964661483,4.814,556.32,555.68,0.30032381]
[1743964662086,4.814,556.32,555.69,0.30032381]
[1743964662285,4.814,556.32,555.7,0.30032381]
[1743964662486,4.814,556.32,555.71,0.30032381]
[1743964662680,1.512,556.32,555.72,0.30032381]
[1743964662883,1.512,556.32,555.73,0.30032381]
[1743964663082,1.512,556.32,555.74,0.30032381]
[1743964663282,1.512,556.32,555.75,0.30032381]
[1743964663586,1.512,556.32,555.76,0.30032381]
[1743964663986,1.512,556.32,555.77,0.30032381]
[1743964664186,1.512,556.32,555.78,0.30032381]
[1743964664386,1.512,556.32,555.64,0.35994528]
[1743964664587,1.512,556.32,555.65,0.30012724]
[1743964664782,1.512,556.32,555.64,0.35994528]
[1743964664783,1.512,556.32,555.66,0.30012724]
[1743964664986,1.512,556.32,555.67,0.30012724]
[1743964665182,1.512,556.32,555.68,0.30012724]
[1743964665385,1.512,556.32,555.69,0.30012724]
[1743964665586,1.512,556.32,555.64,0.35994528]
[1743964665587,1.512,556.32,555.88,1.31653437]
[1743964665788,1.512,556.32,555.89,0.30012724]
[1743964666187,1.512,556.32,555.88,1.31653437]
[1743964666387,1.512,556.32,555.89,0.30015851]
[1743964666687,1.512,556.32,555.9,0.30015851]
[1743964666889,1.512,556.32,555.91,0.30015851]
[1743964667098,1.512,556.32,555.92,0.30015851]
[1743964667435,1.512,556.32,555.89,0.30015851]
[1743964667585,1.512,556.32,555.93,0.30015851]
[1743964667787,1.512,556.32,555.68,1.31653437]
[1743964668086,1.512,556.32,555.69,0.30018934]
[1743964668384,1.512,556.32,555.7,0.30018934]
[1743964668589,1.512,556.32,555.71,0.30018934]
[1743964668889,1.512,556.32,555.72,0.30018934]
[1743964669090,1.512,556.32,555.73,0.30018934]
[1743964669294,1.512,556.32,555.74,0.30018934]
[1743964669790,1.512,556.32,555.75,0.30018934]
[1743964669990,1.512,556.32,555.76,0.30018934]
[1743964670490,1.512,556.32,555.77,0.30018934]
[1743964670687,1.512,556.32,555.78,0.30018934]
[1743964670884,1.512,556.32,555.79,0.30018934]
[1743964671090,1.512,556.32,555.8,0.30018934]
[1743964671390,1.512,556.32,555.81,0.30018934]
[1743964671590,1.512,556.32,555.82,0.30018934]
[1743964671890,1.512,556.32,555.83,0.30018934]
[1743964672091,1.512,556.32,555.84,0.30018934]
[1743964672285,1.512,556.32,555.85,0.30018934]
[1743964672488,1.512,556.32,555.86,0.30018934]
[1743964672688,1.512,556.32,555.87,0.30018934]
[1743964672885,1.512,556.32,555.64,0.35994528]
[1743964673086,1.512,556.32,555.65,0.30016663]
[1743964673390,1.512,556.32,555.66,0.30016663]
[1743964673591,1.512,556.32,555.67,0.30016663]
[1743964673790,1.512,556.32,555.83,1.31653437]
[1743964673989,1.512,556.32,555.84,0.30016663]
[1743964674190,1.512,556.32,555.85,0.30016663]
[1743964674391,1.512,556.32,555.86,0.30016663]
[1743964674592,1.512,556.32,555.87,0.30016663]
[1743964674892,1.512,556.32,555.88,0.30016663]
[1743964675193,1.512,556.32,555.89,0.35978341]
[1743964675491,1.512,556.32,555.9,0.3001396]
[1743964675688,1.512,556.32,555.91,0.3001396]
[1743964675993,1.512,556.32,555.92,0.65990359]
[1743964676187,1.512,556.32,555.93,0.3001396]
[1743964676388,1.512,556.32,555.94,0.3001396]
[1743964676588,1.512,556.32,555.95,0.3001396]
[1743964676794,1.512,556.32,555.92,0.35976399]
[1743964676795,1.512,556.32,555.96,0.3001396]
[1743964676989,1.512,556.32,555.97,0.3001396]
[1743964677187,1.512,556.32,555.98,0.3001396]
[1743964677390,1.512,556.32,555.93,0.3001396]
[1743964677592,1.512,556.32,555.94,0.3001396]
[1743964677894,1.512,556.32,555.93,0.3001396]
[1743964678094,1.512,556.32,555.94,0.3001396]
[1743964678392,1.512,556.32,555.95,0.3001396]
[1743964678594,1.512,556.32,555.93,0.3001396]
[1743964679094,1.512,556.32,555.94,0.3001396]
[1743964679293,1.512,556.32,555.93,0.3001396]
[1743964680188,1.512,556.32,555.94,0.3001396]
[1743964680393,1.512,556.32,555.95,0.30026968]
[1743964680589,1.512,556.32,555.96,0.30026968]
[1743964680889,1.512,556.32,555.97,0.30026968]
[1743964681196,1.512,556.32,555.98,0.30026968]
[1743964681495,1.512,556.32,555.99,0.30026968]
[1743964681696,1.512,556.32,555.93,0.30026968]
[1743964681996,1.512,556.32,555.94,0.30026968]
[1743964682296,1.512,556.32,555.95,0.30026968]
[1743964682491,1.512,556.32,555.96,0.30026968]
[1743964682695,1.512,556.32,555.97,0.30026968]
[1743964682897,1.512,556.32,555.93,0.30026968]
[1743964683895,2.544,556.32,555.93,0.30026968]
[1743964684096,2.544,556.32,555.92,0.35976399]
[1743964684298,2.544,556.32,555.93,0.30038553]
[1743964686997,2.544,556.32,555.75,0.30038553]
[1743964687201,2.544,556.32,555.76,0.30038553]
[1743964687401,3.508,556.32,555.75,0.30038553]
[1743964687601,3.508,556.32,555.76,0.30038553]
[1743964687801,3.508,556.32,555.75,0.30038553]
[1743964688004,3.508,556.32,555.47,1.31653437]
[1743964688203,3.508,556.32,555.48,0.30051109]
[1743964688605,3.508,556.32,555.49,0.30051109]
[1743964688904,0.31279071,557.02,555.5,0.30051109]
[1743964689105,0.31279071,557.02,555.51,0.30051109]
[1743964689300,0.35906642,557.0,555.52,0.36002304]
[1743964689506,0.35906642,557.0,555.53,0.30051109]
[1743964690107,0.35906642,557.0,555.54,0.30051365]
[1743964690305,0.35906642,557.0,555.53,0.30051365]
[1743964691703,0.31254491,556.99,555.53,0.30051365]
[1743964692607,0.31254491,556.99,555.54,0.30051365]
[1743964692909,0.35906642,557.0,555.55,0.30051365]
[1743964693103,0.35906642,557.0,555.52,0.36002304]
[1743964693104,0.35906642,557.0,555.56,0.30051365]
[1743964693309,0.961,556.99,555.57,0.30051365]
[1743964693505,1.898,556.99,555.58,0.30051365]
[1743964693707,1.715,556.98,555.59,0.30051365]
[1743964693903,1.715,556.98,555.6,0.30051365]
[1743964694106,1.027,556.97,555.61,0.30051365]
[1743964694306,2.046,556.97,555.52,0.36002304]
[1743964694505,2.046,556.97,555.53,0.30034794]
[1743964694707,2.046,556.97,555.54,0.30034794]
[1743964694904,2.046,556.97,555.55,0.30034794]
[1743964695109,2.046,556.97,555.56,0.30034794]
[1743964695305,2.046,556.97,555.57,0.30034794]
[1743964695604,2.046,556.97,555.67,1.31653437]
[1743964695810,2.046,556.97,555.68,0.30034794]
[1743964697409,2.046,556.97,555.53,0.30034794]
[1743964699315,2.046,556.97,555.52,0.36002304]
[1743964699614,2.046,556.97,555.53,0.3003926]
[1743964700313,2.046,556.97,555.54,0.3003926]
[1743964700513,2.046,556.97,555.55,0.3003926]
[1743964700714,2.046,556.97,555.56,0.3003926]
[1743964701014,2.046,556.97,555.57,0.3003926]
[1743964701212,2.046,556.97,555.58,0.3003926]
[1743964701412,2.046,556.97,555.59,0.3003926]
[1743964701609,2.046,556.97,555.6,0.3003926]
[1743964701815,2.046,556.97,555.61,0.3003926]
[1743964702008,2.046,556.97,555.62,0.3003926]
[1743964702209,2.046,556.97,555.63,0.3003926]
[1743964702416,2.046,556.97,555.67,1.31653437]
[1743964702613,2.046,556.97,555.68,0.3003926]
[1743964702810,2.046,556.97,555.67,1.31653437]
[1743964703010,2.046,556.97,555.68,0.30038309]
[1743964703213,2.046,556.97,555.69,0.30038309]
[1743964703414,2.046,556.97,555.7,0.30038309]
[1743964703609,2.046,556.97,555.71,0.30038309]
[1743964703815,2.046,556.97,555.72,0.30038309]
[1743964704014,2.046,556.97,555.73,0.30038309]
[1743964704216,2.046,556.97,555.68,0.30038309]
[1743964704412,2.046,556.97,555.67,1.31653437]
[1743964704616,1.2929291,556.96,555.69,0.30041941]
[1743964704917,2.046,556.97,555.7,0.30041941]
[1743964705218,2.046,556.97,555.71,0.30035989]
[1743964705416,2.046,556.97,555.72,0.30035989]
[1743964705716,2.046,556.97,555.73,0.30035989]
[1743964705915,2.046,556.97,555.74,0.30035989]
[1743964706112,2.046,556.97,555.75,0.30035989]
[1743964706317,2.046,556.97,555.76,0.30034193]
[1743964706512,2.046,556.97,555.77,0.30034193]
[1743964706715,2.046,556.97,555.78,0.30034193]
[1743964707016,2.046,556.97,555.79,0.30034193]
[1743964707216,2.046,556.97,555.8,0.30034193]
[1743964707414,2.046,556.97,555.81,0.30034193]
[1743964707612,2.046,556.97,555.71,1.31653437]
[1743964707613,2.046,556.97,555.82,0.30034193]
[1743964707812,2.046,556.97,555.71,1.31653437]
[1743964708018,2.046,556.97,555.72,0.30039422]
[1743964708216,2.046,556.97,555.73,0.30039422]
[1743964708412,2.046,556.97,555.74,0.30039422]
[1743964708611,2.046,556.97,555.75,0.30039422]
[1743964708814,2.046,556.97,555.72,0.30039422]
[1743964709019,2.14499925,556.96,555.73,0.30039422]
[1743964709217,2.14499925,556.96,555.72,0.30039422]
[1743964709419,1.62246735,556.95,555.73,0.30039422]
[1743964709619,3.7674666,556.95,555.73,0.30039422]
[1743964709819,2.14499925,556.94,555.74,0.30039422]
[1743964710022,3.4371194,556.94,555.74,0.30039422]
[1743964710220,2.14499925,556.93,555.69,0.30039422]
[1743964710523,3.4371194,556.93,555.7,0.30039422]
[1743964710719,2.14499925,556.92,555.69,0.30039422]
[1743964710919,2.14499925,556.92,555.68,1.31653437]
[1743964711220,1.29212015,556.91,555.68,1.31653437]
[1743964711421,3.4371194,556.91,555.52,0.36002304]
[1743964711617,2.14499925,556.9,555.53,0.30062335]
[1743964711921,0.3591438,556.88,555.53,0.30062335]
[1743964712222,0.33041567,556.87,555.54,0.66063343]
[1743964712522,0.98423121,556.88,555.55,0.30062335]
[1743964712717,0.3591438,556.88,555.56,0.30062335]
[1743964713022,0.3591438,556.88,555.57,0.66052623]
[1743964713216,0.3591438,556.88,555.58,0.30053559]
[1743964713421,0.3591438,556.88,555.59,0.30053559]
[1743964713621,0.3591438,556.88,555.6,1.61706996]